fUST/lending_fUST_20250921
["ID","MTS","AMOUNT","RATE_DAILY","PERIOD"]
[386575090,1758406238874,-151.0,0.00020393,2]
[386575093,1758406238886,-291.1441014,0.00020393,2]
[386575094,1758406238898,-476.79,0.00020395,2]
[386575095,1758406238909,-257.74,0.00020395,2]
[386575096,1758406238921,-480.0,0.00020395,2]
[386575097,1758406238932,-1165.765,0.00020395,2]
[386575099,1758406238945,-480.0,0.00020395,2]
[386575101,1758406238955,-480.0,0.00020395,2]
[386575103,1758406238964,-480.0,0.00020395,2]
[386575105,1758406238973,-480.0,0.00020395,2]
[386575107,1758406238982,-480.0,0.00020395,2]
[386575109,1758406238992,-480.0,0.00020395,2]
[386575110,1758406239001,-480.0,0.00020395,2]
[386575127,1758406239157,-480.0,0.00020395,2]
[386575129,1758406239167,-480.0,0.00020395,2]
[386575131,1758406239176,-940.31,0.00020395,2]
[386575133,1758406239185,-480.0,0.00020395,2]
[386575134,1758406239194,-480.0,0.00020395,2]
[386575136,1758406239203,-367.37128725,0.00020395,2]
[386575138,1758406239213,-560.0,0.00020395,2]
[386575140,1758406239222,-480.0,0.00020395,2]
[386575142,1758406239231,-480.0,0.00020395,2]
[386575144,1758406239240,-480.0,0.00020395,2]
[386575146,1758406239249,-480.0,0.00020395,2]
[386575148,1758406239264,-1088.89,0.00020395,2]
[386575150,1758406239272,-480.0,0.00020395,2]
[386575152,1758406239282,-480.0,0.00020395,2]
[386575154,1758406239291,-480.0,0.00020395,2]
[386575156,1758406239301,-480.0,0.00020395,2]
[386575158,1758406239310,-480.0,0.00020395,2]
[386575160,1758406239320,-480.0,0.00020395,2]
[386575162,1758406239330,-1486.87,0.00020395,2]
[386575164,1758406239340,-480.00438574,0.00020395,2]
[386575166,1758406239350,-480.0,0.00020395,2]
[386575168,1758406239360,-480.0,0.00020395,2]
[386575170,1758406239369,-480.0,0.00020395,2]
[386575172,1758406239378,-480.0,0.00020395,2]
[386575174,1758406239387,-480.0,0.00020395,2]
[386575176,1758406239396,-480.0,0.00020395,2]
[386575178,1758406239405,-480.0,0.00020395,2]
[386575180,1758406239414,-2871.06,0.00020395,2]
[386575182,1758406239423,-480.0,0.00020395,2]
[386575184,1758406239433,-1298.11,0.00020395,2]
[386575185,1758406239442,-480.0,0.00020395,2]
[386575187,1758406239452,-369.65521145,0.00020396,2]
[386575189,1758406239461,-480.0,0.00020396,2]
[386575191,1758406239470,-480.0,0.00020396,2]
[386575193,1758406239479,-480.0,0.00020396,2]
[386575194,1758406239489,-480.0,0.00020396,2]
[386575196,1758406239498,-480.0,0.00020396,2]
[386575198,1758406239507,-480.0,0.00020396,2]
[386575200,1758406239516,-480.0,0.00020396,2]
[386575202,1758406239525,-480.0,0.00020396,2]
[386575204,1758406239535,-480.0,0.00020396,2]
[386575206,1758406239545,-480.0,0.00020396,2]
[386575208,1758406239556,-614.18,0.00020396,2]
[386575210,1758406239565,-480.0,0.00020396,2]
[386575211,1758406239574,-440.95,0.00020396,2]
[386575213,1758406239584,-480.0,0.00020396,2]
[386575215,1758406239593,-480.0,0.00020396,2]
[386575218,1758406239603,-939.23,0.00020396,2]
[386575221,1758406239613,-480.0,0.00020396,2]
[386575224,1758406239622,-480.0,0.00020396,2]
[386575227,1758406239631,-174.23,0.00020396,2]
[386575228,1758406239641,-174.23,0.00020396,2]
[386575230,1758406239650,-174.23,0.00020396,2]
[386575232,1758406239660,-174.23,0.00020396,2]
[386575235,1758406239668,-150.99,0.00020396,2]
[386575237,1758406239677,-480.0,0.00020396,2]
[386575239,1758406239687,-480.0,0.00020396,2]
[386575242,1758406239697,-480.0,0.00020396,2]
[386575245,1758406239706,-480.0,0.00020396,2]
[386575247,1758406239715,-525.41443852,0.00020396,2]
[386575250,1758406239724,-480.0,0.00020397,2]
[386575253,1758406239734,-480.0,0.00020397,2]
[386575256,1758406239744,-310.32,0.00020397,2]
[386575259,1758406239753,-480.0,0.00020397,2]
[386575262,1758406239762,-480.0,0.00020397,2]
[386575264,1758406239771,-480.0,0.00020397,2]
[386575267,1758406239780,-480.0,0.00020397,2]
[386575270,1758406239789,-512.9,0.00020397,2]
[386575272,1758406239798,-480.0,0.00020397,2]
[386575275,1758406239808,-481.49281961,0.00020397,2]
[386575278,1758406239817,-480.0,0.00020397,2]
[386575281,1758406239827,-480.0,0.00020397,2]
[386575284,1758406239836,-480.0,0.00020397,2]
[386575287,1758406239845,-480.0,0.00020397,2]
[386575290,1758406239854,-480.0,0.00020397,2]
[386575293,1758406239864,-480.0,0.00020397,2]
[386575296,1758406239874,-480.0,0.00020397,2]
[386575299,1758406239884,-480.0,0.00020397,2]
[386575302,1758406239894,-480.0,0.00020397,2]
[386575305,1758406239903,-1359.2,0.00020397,2]
[386575308,1758406239913,-480.0,0.00020397,2]
[386575311,1758406239922,-500.0,0.00020397,2]
[386575314,1758406239931,-151.0,0.00020397,2]
[386575317,1758406239940,-151.0,0.00020397,2]
[386575320,1758406239949,-151.0,0.00020397,2]
[386575323,1758406239959,-239.1556791,0.00020397,2]
[386575326,1758406239968,-480.0,0.00020397,2]
[386575329,1758406239977,-480.0,0.00020397,2]
[386575332,1758406239987,-480.0,0.00020397,2]
[386575333,1758406239996,-5775.07,0.00020397,2]
[386575336,1758406240006,-794.21,0.00020397,2]
[386575339,1758406240015,-150.0,0.00020398,2]
[386575342,1758406240024,-160.0,0.00020406,2]
[386575345,1758406240033,-480.0,0.00020456,2]
[386575348,1758406240042,-1049.86,0.00020456,2]
[386575351,1758406240052,-480.0,0.00020467,2]
[386575354,1758406240061,-272.37673377,0.00020468,2]
[386575357,1758406240071,-1654.64,0.00020468,2]
[386575360,1758406240080,-480.0,0.00020468,2]
[386575363,1758406240089,-480.0,0.00020468,2]
[386575366,1758406240099,-1196.0,0.00020468,2]
[386575369,1758406240108,-1477.33,0.00020468,2]
[386575372,1758406240117,-480.0,0.00020468,2]
[386575375,1758406240126,-664.17,0.00020468,2]
[386575378,1758406240135,-480.0,0.00020468,2]
[386575381,1758406240144,-480.0,0.00020468,2]
[386575384,1758406240154,-710.5,0.00020468,2]
[386575387,1758406240163,-500.0,0.00020469,2]
[386575390,1758406240172,-641.2,0.00020472,2]
[386575392,1758406240181,-465.55046881,0.00020495,2]
[386575395,1758406240191,-480.0,0.00020495,2]
[386575398,1758406240200,-480.0,0.00020495,2]
[386575400,1758406240210,-480.0,0.00020495,2]
[386575403,1758406240220,-480.0,0.00020495,2]
[386575407,1758406240229,-480.0,0.00020495,2]
[386575409,1758406240239,-480.0,0.00020495,2]
[386575412,1758406240248,-480.0,0.00020495,2]
[386575415,1758406240261,-9281.07,0.00020495,2]
[386575418,1758406240270,-480.0,0.00020495,2]
[386575421,1758406240279,-2250.97,0.00020495,2]
[386575424,1758406240289,-168.0,0.0002051,2]
[386575427,1758406240298,-233.69460138,0.0002052,2]
[386575430,1758406240307,-1531.0,0.00020532,2]
[386575433,1758406240316,-441.1001309,0.00020533,2]
[386575436,1758406240326,-480.0,0.00020548,2]
[386575439,1758406240335,-480.0,0.00020548,2]
[386575442,1758406240344,-480.0,0.00020548,2]
[386575445,1758406240353,-480.0,0.00020548,2]
[386575448,1758406240363,-480.0,0.00020548,2]
[386575451,1758406240372,-1162.16,0.00020549,2]
[386575454,1758406240381,-480.0,0.00020549,2]
[386575457,1758406240391,-1232.12,0.00020549,2]
[386575459,1758406240400,-2404.0,0.00020568,2]
[386575461,1758406240409,-480.0,0.00020568,2]
[386575463,1758406240418,-1270.64,0.00020568,2]
[386575465,1758406240427,-2201.53,0.00020568,2]
[386575467,1758406240436,-1079.09,0.00020568,2]
[386575469,1758406240445,-480.0,0.00020568,2]
[386575471,1758406240454,-168.0,0.00020576,2]
[386575473,1758406240463,-466.71,0.00020579,2]
[386575474,1758406240472,-168.0,0.00020614,2]
[386575476,1758406240481,-1006.0,0.00020618,2]
[386575478,1758406240490,-480.0,0.00020669,2]
[386575480,1758406240499,-480.0,0.00020669,2]
[386575482,1758406240508,-480.0,0.00020669,2]
[386575484,1758406240517,-500.0,0.00020669,2]
[386575486,1758406240526,-480.0,0.00020669,2]
[386575488,1758406240535,-480.0,0.00020669,2]
[386575490,1758406240544,-480.0,0.00020669,2]
[386575492,1758406240553,-480.0,0.00020669,2]
[386575494,1758406240562,-940.31,0.00020669,2]
[386575496,1758406240571,-569.14896196,0.00020669,2]
[386575498,1758406240580,-480.0,0.00020669,2]
[386575500,1758406240590,-480.0,0.00020669,2]
[386575502,1758406240598,-480.0,0.00020669,2]
[386575504,1758406240607,-480.0,0.00020669,2]
[386575506,1758406240616,-1088.89,0.00020669,2]
[386575507,1758406240626,-480.0,0.00020669,2]
[386575509,1758406240635,-480.0,0.00020669,2]
[386575511,1758406240644,-480.0,0.00020669,2]
[386575513,1758406240654,-480.0,0.00020669,2]
[386575515,1758406240663,-480.0,0.00020669,2]
[386575517,1758406240672,-480.0,0.00020669,2]
[386575519,1758406240682,-1486.87,0.00020669,2]
[386575522,1758406240691,-480.0,0.00020669,2]
[386575524,1758406240700,-480.0,0.00020669,2]
[386575526,1758406240710,-480.0,0.00020669,2]
[386575529,1758406240719,-480.0,0.00020669,2]
[386575532,1758406240729,-480.0,0.00020669,2]
[386575535,1758406240739,-480.0,0.00020669,2]
[386575538,1758406240748,-2871.06,0.00020669,2]
[386575541,1758406240757,-1298.11,0.00020669,2]
[386575544,1758406240767,-480.0,0.0002067,2]
[386575547,1758406240776,-480.0,0.0002067,2]
[386575550,1758406240785,-480.0,0.0002067,2]
[386575554,1758406240796,-480.0,0.0002067,2]
[386575556,1758406240805,-480.0,0.0002067,2]
[386575560,1758406240815,-480.0,0.0002067,2]
[386575563,1758406240824,-480.0,0.0002067,2]
[386575565,1758406240834,-480.0,0.0002067,2]
[386575568,1758406240843,-614.18,0.0002067,2]
[386575571,1758406240852,-480.0,0.0002067,2]
[386575574,1758406240861,-480.0,0.0002067,2]
[386575577,1758406240871,-480.0,0.0002067,2]
[386575580,1758406240880,-939.23,0.0002067,2]
[386575582,1758406240889,-480.0,0.0002067,2]
[386575586,1758406240899,-500.0,0.00020671,2]
[386575589,1758406240908,-276.78883637,0.00020671,2]
[386575591,1758406240917,-151.0,0.00020671,2]
[386575595,1758406240927,-480.0,0.00020671,2]
[386575597,1758406240936,-480.0,0.00020671,2]
[386575600,1758406240945,-480.0,0.00020671,2]
[386575603,1758406240956,-512.9,0.00020671,2]
[386575606,1758406240965,-480.0,0.00020671,2]
[386575609,1758406240974,-480.0,0.00020671,2]
[386575612,1758406240983,-480.0,0.00020671,2]
[386575614,1758406240992,-492.17479989,0.00020671,2]
[386575616,1758406241002,-1359.2,0.00020671,2]
[386575618,1758406241011,-480.0,0.00020671,2]
[386575620,1758406241020,-480.0,0.00020671,2]
[386575622,1758406241029,-480.0,0.00020671,2]
[386575624,1758406241038,-5775.07,0.00020671,2]
[386575626,1758406241048,-794.21,0.00020671,2]
[386575628,1758406241057,-1531.0,0.00020671,2]
[386575630,1758406241067,-151.0,0.000207,3]
[386575632,1758406241076,-1200.0,0.00020712,2]
[386575634,1758406241085,-11135.98337748,0.00020723,2]
[386575636,1758406241095,-480.0,0.0002073,2]
[386575638,1758406241105,-1049.86,0.0002073,2]
[386575640,1758406241114,-480.0,0.00020741,2]
[386575642,1758406241124,-1654.64,0.00020742,2]
[386575644,1758406241133,-480.0,0.00020742,2]
[386575646,1758406241142,-1196.0,0.00020742,2]
[386575648,1758406241151,-1477.33,0.00020742,2]
[386575650,1758406241161,-480.0,0.00020742,2]
[386575652,1758406241170,-664.17,0.00020742,2]
[386575654,1758406241180,-480.0,0.00020742,2]
[386575656,1758406241188,-480.0,0.00020742,2]
[386575658,1758406241197,-710.5,0.00020742,2]
[386575660,1758406241208,-500.0,0.00020743,2]
[386575662,1758406241217,-500.0,0.00020746,2]
[386575664,1758406241227,-500.0,0.00020746,2]
[386575666,1758406241236,-500.0,0.00020746,2]
[386575668,1758406241245,-500.0,0.00020746,2]
[386575670,1758406241256,-480.0,0.00020769,2]
[386575672,1758406241266,-480.0,0.00020769,2]
[386575674,1758406241275,-480.0,0.00020769,2]
[386575676,1758406241284,-480.0,0.00020769,2]
[386575678,1758406241295,-9281.07,0.00020769,2]
[386575680,1758406241304,-480.0,0.00020769,2]
[386575682,1758406241313,-2250.97,0.00020769,2]
[386575684,1758406241324,-1531.0,0.00020811,2]
[386575686,1758406241333,-480.0,0.00020822,2]
[386575688,1758406241343,-480.0,0.00020822,2]
[386575690,1758406241352,-1162.16,0.00020823,2]
[386575693,1758406241362,-480.0,0.00020823,2]
[386575695,1758406241371,-1232.12,0.00020823,2]
[386575697,1758406241380,-500.0,0.00020828,2]
[386575699,1758406241390,-500.0,0.00020828,2]
[386575700,1758406241399,-500.0,0.00020828,2]
[386575703,1758406241409,-260.51115539,0.00020828,2]
[386575705,1758406241419,-501.53364087,0.00020828,2]
[386575707,1758406241428,-503.17580284,0.00020828,2]
[386575709,1758406241437,-500.37635435,0.00020828,2]
[386575710,1758406241446,-500.0,0.00020828,2]
[386575712,1758406241456,-500.0,0.00020828,2]
[386575715,1758406241465,-182.44682867,0.00020828,2]
[386575727,1758406241570,-2404.0,0.00020842,2]
[386575729,1758406241579,-1270.64,0.00020842,2]
[386575731,1758406241588,-2201.53,0.00020842,2]
[386575733,1758406241598,-1079.09,0.00020842,2]
[386575735,1758406241607,-480.0,0.00020842,2]
[386575737,1758406241616,-233.69460138,0.00020846,2]
[386575739,1758406241625,-656.06359276,0.00020883,2]
[386575741,1758406241635,-168.0,0.00020889,2]
[386575764,1758406241851,-151.0,0.000209,4]
[386575766,1758406241862,-10546.64649261,0.00020921,3]
[386575768,1758406241871,-160.0,0.00020921,3]
[386575770,1758406241881,-151.0,0.00020933,2]
[386575772,1758406241890,-151.872814,0.00020933,2]
[386575774,1758406241900,-1322.55976002,0.00020933,2]
[386575776,1758406241909,-500.0,0.00020943,2]
[386575778,1758406241919,-480.0,0.00020943,2]
[386575780,1758406241928,-480.0,0.00020943,2]
[386575782,1758406241938,-151.0,0.00020943,2]
[386575784,1758406241947,-151.0,0.00020943,2]
[386575786,1758406241956,-151.0,0.00020943,2]
[386575788,1758406241966,-151.0,0.00020943,2]
[386575790,1758406241975,-151.0,0.00020943,2]
[386575792,1758406241984,-151.0,0.00020943,2]
[386575794,1758406241994,-151.0,0.00020943,2]
[386575796,1758406242003,-151.0,0.00020943,2]
[386575798,1758406242012,-288.209064,0.00020943,2]
[386575800,1758406242022,-151.0,0.00020943,2]
[386575802,1758406242031,-151.0,0.00020943,2]
[386575804,1758406242040,-151.0,0.00020943,2]
[386575806,1758406242049,-151.0,0.00020943,2]
[386575808,1758406242059,-151.0,0.00020943,2]
[386575809,1758406242068,-151.0,0.00020943,2]
[386575810,1758406242077,-151.0,0.00020943,2]
[386575811,1758406242086,-151.0,0.00020943,2]
[386575812,1758406242095,-151.0,0.00020943,2]
[386575813,1758406242105,-151.0,0.00020943,2]
[386575814,1758406242115,-151.0,0.00020943,2]
[386575815,1758406242124,-151.0,0.00020943,2]
[386575816,1758406242135,-151.0,0.00020943,2]
[386575817,1758406242144,-191.392033,0.00020943,2]
[386575818,1758406242154,-191.392033,0.00020943,2]
[386575819,1758406242166,-191.392033,0.00020943,2]
[386575820,1758406242176,-191.392033,0.00020943,2]
[386575821,1758406242188,-430.83,0.00020943,2]
[386575822,1758406242198,-151.0,0.00020943,2]
[386575823,1758406242208,-151.0,0.00020943,2]
[386575824,1758406242218,-480.0,0.00020943,2]
[386575825,1758406242227,-151.0,0.00020943,2]
[386575826,1758406242237,-151.0,0.00020943,2]
[386575827,1758406242246,-253.40651328,0.00020943,2]
[386575828,1758406242260,-151.0,0.00020943,2]
[386575829,1758406242270,-480.0,0.00020943,2]
[386575830,1758406242279,-248.484162,0.00020943,2]
[386575831,1758406242289,-940.31,0.00020943,2]
[386575832,1758406242298,-248.484162,0.00020943,2]
[386575833,1758406242307,-248.484162,0.00020943,2]
[386575834,1758406242317,-248.484162,0.00020943,2]
[386575835,1758406242327,-151.0,0.00020943,2]
[386575836,1758406242339,-151.0,0.00020943,2]
[386575837,1758406242348,-151.0,0.00020943,2]
[386575838,1758406242358,-151.0,0.00020943,2]
[386575839,1758406242367,-547.36,0.00020943,2]
[386575840,1758406242376,-151.0,0.00020943,2]
[386575841,1758406242385,-151.0,0.00020943,2]
[386575842,1758406242395,-151.0,0.00020943,2]
[386575843,1758406242405,-151.0,0.00020943,2]
[386575844,1758406242414,-151.0,0.00020943,2]
[386575845,1758406242423,-151.0,0.00020943,2]
[386575846,1758406242433,-151.0,0.00020943,2]
[386575847,1758406242443,-480.0,0.00020943,2]
[386575848,1758406242453,-480.0,0.00020943,2]
[386575849,1758406242463,-480.0,0.00020943,2]
[386575850,1758406242472,-151.0,0.00020943,2]
[386575851,1758406242482,-1088.89,0.00020943,2]
[386575852,1758406242492,-165.32,0.00020943,2]
[386575853,1758406242501,-285.335473,0.00020943,2]
[386575854,1758406242511,-480.0,0.00020943,2]
[386575855,1758406242520,-285.335473,0.00020943,2]
[386575856,1758406242530,-285.335473,0.00020943,2]
[386575857,1758406242539,-285.335473,0.00020943,2]
[386575858,1758406242548,-480.0,0.00020943,2]
[386575859,1758406242558,-1486.87,0.00020943,2]
[386575860,1758406242567,-480.0,0.00020943,2]
[386575861,1758406242576,-151.0,0.00020943,2]
[386575862,1758406242586,-151.0,0.00020943,2]
[386575863,1758406242595,-151.0,0.00020943,2]
[386575864,1758406242605,-480.0,0.00020943,2]
[386575866,1758406242614,-1147.919926,0.00020943,2]
[386575867,1758406242623,-1147.919926,0.00020943,2]
[386575869,1758406242632,-1147.919926,0.00020943,2]
[386575870,1758406242642,-1147.919926,0.00020943,2]
[386575871,1758406242651,-151.0,0.00020943,2]
[386575872,1758406242661,-151.0,0.00020943,2]
[386575873,1758406242670,-151.0,0.00020943,2]
[386575874,1758406242680,-151.0,0.00020943,2]
[386575875,1758406242689,-480.0,0.00020943,2]
[386575876,1758406242699,-2871.06,0.00020943,2]
[386575877,1758406242708,-600.333304,0.00020943,2]
[386575878,1758406242718,-1951.665054,0.00020943,2]
[386575879,1758406242727,-1951.665054,0.00020943,2]
[386575880,1758406242736,-600.333304,0.00020943,2]
[386575881,1758406242746,-1951.665054,0.00020943,2]
[386575882,1758406242755,-600.333304,0.00020943,2]
[386575883,1758406242764,-1951.665054,0.00020943,2]
[386575884,1758406242774,-600.333304,0.00020943,2]
[386575885,1758406242783,-351.760916,0.00020943,2]
[386575886,1758406242792,-351.760916,0.00020943,2]
[386575887,1758406242802,-351.760916,0.00020943,2]
[386575888,1758406242811,-1298.11,0.00020943,2]
[386575889,1758406242821,-351.760916,0.00020943,2]
[386575890,1758406242830,-447.859285,0.00020943,2]
[386575891,1758406242840,-151.0,0.00020943,2]
[386575892,1758406242850,-151.0,0.00020943,2]
[386575893,1758406242859,-447.859285,0.00020943,2]
[386575894,1758406242869,-1154.849456,0.00020943,2]
[386575895,1758406242878,-151.0,0.00020943,2]
[386575896,1758406242888,-447.859285,0.00020943,2]
[386575897,1758406242897,-1154.849456,0.00020943,2]
[386575898,1758406242907,-151.0,0.00020943,2]
[386575899,1758406242916,-447.859285,0.00020943,2]
[386575900,1758406242925,-2292.641442,0.00020943,2]
[386575901,1758406242935,-1154.849456,0.00020943,2]
[386575902,1758406242945,-196.578715,0.00020943,2]
[386575903,1758406242954,-2292.641442,0.00020943,2]
[386575904,1758406242963,-1154.849456,0.00020943,2]
[386575905,1758406242973,-2292.641442,0.00020943,2]
[386575906,1758406242983,-2292.641442,0.00020943,2]
[386575907,1758406242992,-151.0,0.00020944,2]
[386575908,1758406243001,-151.0,0.00020944,2]
[386575909,1758406243011,-151.0,0.00020944,2]
[386575910,1758406243020,-370.77,0.00020944,2]
[386575911,1758406243029,-480.0,0.00020944,2]
[386575912,1758406243039,-480.0,0.00020944,2]
[386575913,1758406243048,-480.0,0.00020944,2]
[386575914,1758406243058,-151.0,0.00020944,2]
[386575915,1758406243067,-225.765839,0.00020944,2]
[386575916,1758406243077,-225.765839,0.00020944,2]
[386575917,1758406243086,-225.765839,0.00020944,2]
[386575918,1758406243096,-225.765839,0.00020944,2]
[386575919,1758406243105,-283.54,0.00020944,2]
[386575920,1758406243115,-614.18,0.00020944,2]
[386575921,1758406243124,-151.000001,0.00020944,2]
[386575922,1758406243134,-480.0,0.00020944,2]
[386575923,1758406243144,-480.0,0.00020944,2]
[386575924,1758406243153,-939.23,0.00020944,2]
[386575925,1758406243162,-358.57328509,0.00020944,2]
[386575926,1758406243171,-500.0,0.00020945,2]
[386575927,1758406243181,-293.06295269,0.00020945,2]
[386575928,1758406243190,-480.0,0.00020945,2]
[386575929,1758406243199,-617.83,0.00020945,2]
[386575930,1758406243209,-512.9,0.00020945,2]
[386575931,1758406243218,-480.0,0.00020945,2]
[386575932,1758406243227,-1359.2,0.00020945,2]
[386575933,1758406243236,-480.0,0.00020945,2]
[386575934,1758406243246,-5775.07,0.00020945,2]
[386575935,1758406243258,-794.21,0.00020945,2]
[386575936,1758406243267,-500.0,0.00020949,2]
[386575937,1758406243277,-500.0,0.00020949,2]
[386575938,1758406243286,-504.01996578,0.00020949,2]
[386575939,1758406243295,-500.0,0.00020949,2]
[386575940,1758406243306,-730.41836146,0.00020959,2]
[386575941,1758406243315,-6749.32308075,0.00020972,2]
[386575942,1758406243324,-151.0,0.00020972,2]
[386575943,1758406243334,-151.0,0.00020972,2]
[386575944,1758406243343,-151.0,0.00020972,2]
[386575945,1758406243352,-151.0,0.00020972,2]
[386575946,1758406243362,-151.0,0.00020972,2]
[386575947,1758406243371,-151.0,0.00020972,2]
[386575948,1758406243380,-151.0,0.00020972,2]
[386575949,1758406243389,-151.0,0.00020972,2]
[386575950,1758406243399,-151.0,0.00020972,2]
[386575951,1758406243408,-151.0,0.00020972,2]
[386575952,1758406243418,-151.0,0.00020972,2]
[386575953,1758406243427,-151.0,0.00020972,2]
[386575954,1758406243436,-151.0,0.00020972,2]
[386575955,1758406243446,-151.0,0.00020972,2]
[386575956,1758406243455,-151.0,0.00020972,2]
[386575957,1758406243465,-362.876361,0.00020972,2]
[386575958,1758406243474,-362.876361,0.00020972,2]
[386575959,1758406243483,-362.876361,0.00020972,2]
[386575960,1758406243492,-362.876361,0.00020972,2]
[386575961,1758406243503,-151.0,0.00020972,2]
[386575962,1758406243512,-449.95627957,0.00020973,2]
[386575963,1758406243523,-500.0,0.00020973,2]
[386575964,1758406243534,-483.76639083,0.00020973,2]
[386575965,1758406243543,-500.0,0.00020973,2]
[386575966,1758406243553,-632.40741713,0.00020973,2]
[386575967,1758406243562,-500.0,0.00020973,2]
[386575968,1758406243572,-500.0,0.00020973,2]
[386575969,1758406243581,-500.0,0.00020973,2]
[386575970,1758406243591,-500.0,0.00020973,2]
[386575971,1758406243600,-500.0,0.00020973,2]
[386575972,1758406243609,-168.0,0.00020977,2]
[386575973,1758406243618,-151.0,0.00021,4]
[386575974,1758406243627,-480.0,0.00021004,2]
[386575975,1758406243637,-1049.86,0.00021004,2]
[386575976,1758406243646,-480.0,0.00021015,2]
[386575977,1758406243656,-1654.64,0.00021016,2]
[386575978,1758406243665,-480.0,0.00021016,2]
[386575979,1758406243674,-1196.0,0.00021016,2]
[386575980,1758406243684,-1477.33,0.00021016,2]
[386575981,1758406243693,-480.0,0.00021016,2]
[386575982,1758406243702,-664.17,0.00021016,2]
[386575983,1758406243712,-480.0,0.00021016,2]
[386575984,1758406243721,-480.0,0.00021016,2]
[386575985,1758406243731,-710.5,0.00021016,2]
[386575986,1758406243740,-500.0,0.00021017,2]
[386575987,1758406243750,-151.0,0.00021043,2]
[386575988,1758406243759,-151.0,0.00021043,2]
[386575989,1758406243768,-151.0,0.00021043,2]
[386575990,1758406243778,-158.952847,0.00021043,2]
[386575991,1758406243787,-151.0,0.00021043,2]
[386575992,1758406243796,-151.0,0.00021043,2]
[386575993,1758406243805,-151.0,0.00021043,2]
[386575994,1758406243815,-151.0,0.00021043,2]
[386575995,1758406243824,-480.0,0.00021043,2]
[386575996,1758406243833,-9281.07,0.00021043,2]
[386575997,1758406243843,-480.0,0.00021043,2]
[386575998,1758406243852,-2250.97,0.00021043,2]
[386575999,1758406243862,-500.0,0.00021049,2]
[386576000,1758406243871,-500.0,0.00021073,2]
[386576001,1758406243881,-500.0,0.00021073,2]
[386576002,1758406243891,-500.0,0.00021073,2]
[386576003,1758406243900,-500.0,0.00021073,2]
[386576004,1758406243910,-500.0,0.00021073,2]
[386576005,1758406243920,-548.68274779,0.00021073,2]
[386576006,1758406243930,-269.05660348,0.00021073,2]
[386576007,1758406244011,-500.0,0.00021073,2]
[386576008,1758406244031,-500.0,0.00021073,2]
[386576009,1758406244041,-500.0,0.00021073,2]
[386576010,1758406244051,-500.0,0.00021073,2]
[386576011,1758406244060,-500.0,0.00021073,2]
[386576012,1758406244069,-500.0,0.00021073,2]
[386576013,1758406244079,-500.0,0.00021073,2]
[386576014,1758406244088,-480.0,0.00021096,2]
[386576015,1758406244097,-480.0,0.00021096,2]
[386576016,1758406244107,-151.0,0.00021096,2]
[386576017,1758406244116,-1162.16,0.00021097,2]
[386576018,1758406244126,-151.0,0.00021097,2]
[386576019,1758406244135,-225.765839,0.00021097,2]